[Event "Early-Titled-Tuesday-Blitz-February-27-2024"]
[Site "Chess.com"]
[Date "2024.02.27"]
[Round "6"]
[White "ploxoi"]
[Black "vladgoncharov"]
[Result "1-0"]
[WhiteElo "2473"]
[BlackElo "2631"]
[TimeControl "180+1"]
[EndTime "9:05:47 PST"]
[Termination "ploxoi won by checkmate"]

1. d4 {[%clk 0:03:00.9]} 1... Nf6 {[%clk 0:02:59.7]} 2. c4 {[%clk 0:03:00.6]}
2... e6 {[%clk 0:02:59.7]} 3. g3 {[%clk 0:03:00.8]} 3... c5 {[%clk 0:02:59.1]}
4. d5 {[%clk 0:02:59.7]} 4... exd5 {[%clk 0:02:59]} 5. cxd5 {[%clk 0:03:00.6]}
5... d6 {[%clk 0:02:59.5]} 6. Bg2 {[%clk 0:03:01.2]} 6... g6 {[%clk 0:03:00.1]}
7. Nc3 {[%clk 0:03:01.7]} 7... Bg7 {[%clk 0:03:00.8]} 8. Nf3 {[%clk 0:03:02.2]}
8... O-O {[%clk 0:03:00.6]} 9. O-O {[%clk 0:03:02.7]} 9... Re8 {[%clk
0:03:00.6]} 10. Nd2 {[%clk 0:03:02.9]} 10... Nbd7 {[%clk 0:02:55]} 11. h3 {[%clk
0:03:02.9]} 11... a6 {[%clk 0:02:48.9]} 12. a4 {[%clk 0:03:02.1]} 12... Rb8
{[%clk 0:02:44.7]} 13. Nc4 {[%clk 0:03:00.8]} 13... Nb6 {[%clk 0:02:44.4]} 14.
Na3 {[%clk 0:03:00.3]} 14... Bd7 {[%clk 0:02:38]} 15. Re1 {[%clk 0:02:51.1]}
15... Nc8 {[%clk 0:02:32.9]} 16. Nc4 {[%clk 0:02:37.4]} 16... b5 {[%clk
0:02:27]} 17. axb5 {[%clk 0:02:37]} 17... axb5 {[%clk 0:02:26.2]} 18. Na5 {[%clk
0:02:37.2]} 18... Ra8 {[%clk 0:02:25.9]} 19. Nb7 {[%clk 0:02:14.2]} 19... Rxa1
{[%clk 0:02:13.9]} 20. Nxd8 {[%clk 0:02:14.1]} 20... Rxd8 {[%clk 0:02:14.1]} 21.
Qc2 {[%clk 0:02:08]} 21... b4 {[%clk 0:02:10]} 22. Nd1 {[%clk 0:01:45.8]} 22...
Nb6 {[%clk 0:02:00.6]} 23. e4 {[%clk 0:01:45.9]} 23... Bb5 {[%clk 0:01:49.4]}
24. Ne3 {[%clk 0:01:31.1]} 24... Nfd7 {[%clk 0:01:46.6]} 25. Bd2 {[%clk
0:01:29.9]} 25... Ra2 {[%clk 0:01:33.1]} 26. Rb1 {[%clk 0:01:23.8]} 26... Ne5
{[%clk 0:01:31.4]} 27. Bf1 {[%clk 0:00:52.6]} 27... Nf3+ {[%clk 0:01:15.4]} 28.
Kg2 {[%clk 0:00:50.7]} 28... Nd4 {[%clk 0:01:15]} 29. Qd1 {[%clk 0:00:43.9]}
29... Ba4 {[%clk 0:01:09.8]} 30. Qe1 {[%clk 0:00:29.4]} 30... Bb3 {[%clk
0:01:02.2]} 31. Qc1 {[%clk 0:00:14.7]} 31... f5 {[%clk 0:00:56.5]} 32. exf5
{[%clk 0:00:14]} 32... gxf5 {[%clk 0:00:52.4]} 33. Nc4 {[%clk 0:00:14.4]} 33...
Nxd5 {[%clk 0:00:50.5]} 34. Ra1 {[%clk 0:00:14.3]} 34... Kh8 {[%clk 0:00:38.1]}
35. h4 {[%clk 0:00:10.6]} 35... Nf6 {[%clk 0:00:33]} 36. Rxa2 {[%clk 0:00:09.9]}
36... Bxa2 {[%clk 0:00:33]} 37. Bg5 {[%clk 0:00:09.8]} 37... Ne6 {[%clk
0:00:18.2]} 38. Ne3 {[%clk 0:00:06]} 38... f4 {[%clk 0:00:16.1]} 39. Nf5 {[%clk
0:00:05.7]} 39... Bd5+ {[%clk 0:00:15.1]} 40. Kg1 {[%clk 0:00:05.3]} 40... Nxg5
{[%clk 0:00:15.2]} 41. hxg5 {[%clk 0:00:05.5]} 41... Ne4 {[%clk 0:00:13.5]} 42.
Nxg7 {[%clk 0:00:05.9]} 42... fxg3 {[%clk 0:00:12.2]} 43. Nf5 {[%clk 0:00:04.9]}
43... gxf2+ {[%clk 0:00:12.4]} 44. Kh2 {[%clk 0:00:05.5]} 44... Rf8 {[%clk
0:00:10.6]} 45. Ng3 {[%clk 0:00:03.7]} 45... Rf4 {[%clk 0:00:05.6]} 46. Nxe4
{[%clk 0:00:02.8]} 46... Rxe4 {[%clk 0:00:05.6]} 47. Kg3 {[%clk 0:00:02.5]}
47... Kg7 {[%clk 0:00:03.9]} 48. Kxf2 {[%clk 0:00:02.7]} 48... Rd4 {[%clk
0:00:04.2]} 49. Qe3 {[%clk 0:00:01.5]} 49... Bf7 {[%clk 0:00:04.3]} 50. b3
{[%clk 0:00:01.9]} 50... h6 {[%clk 0:00:02.6]} 51. Be2 {[%clk 0:00:02.3]} 51...
hxg5 {[%clk 0:00:02.2]} 52. Qxg5+ {[%clk 0:00:03.2]} 52... Bg6 {[%clk
0:00:02.3]} 53. Qe7+ {[%clk 0:00:03.7]} 53... Kh6 {[%clk 0:00:02.2]} 54. Ke3
{[%clk 0:00:04]} 54... Rd5 {[%clk 0:00:02.2]} 55. Qf8+ {[%clk 0:00:02.3]} 55...
Kg5 {[%clk 0:00:02]} 56. Qf4# {[%clk 0:00:03]} 1-0

[Event "Early-Titled-Tuesday-Blitz-February-27-2024"]
[Site "Chess.com"]
[Date "2024.02.27"]
[Round "6"]
[White "dianamirza"]
[Black "Alblooshi_Hamad"]
[Result "0-1"]
[WhiteElo "1986"]
[BlackElo "2163"]
[TimeControl "180+1"]
[EndTime "9:05:47 PST"]
[Termination "Alblooshi_Hamad won by resignation"]

1. e4 {[%clk 0:02:29.3]} 1... e5 {[%clk 0:02:57.8]} 2. Nf3 {[%clk 0:02:22.9]}
2... Nc6 {[%clk 0:02:57.8]} 3. Bb5 {[%clk 0:02:22.2]} 3... a6 {[%clk 0:02:57.1]}
4. Bxc6 {[%clk 0:02:22.6]} 4... dxc6 {[%clk 0:02:57.3]} 5. O-O {[%clk
0:02:23.4]} 5... Qd6 {[%clk 0:02:56.7]} 6. d4 {[%clk 0:02:22.4]} 6... exd4
{[%clk 0:02:56.2]} 7. Qxd4 {[%clk 0:02:23.3]} 7... Qxd4 {[%clk 0:02:56.3]} 8.
Nxd4 {[%clk 0:02:24.2]} 8... Nf6 {[%clk 0:02:56.7]} 9. e5 {[%clk 0:02:18.7]}
9... Nd5 {[%clk 0:02:56]} 10. c4 {[%clk 0:02:18]} 10... Nb6 {[%clk 0:02:56.3]}
11. b3 {[%clk 0:02:09.9]} 11... Bc5 {[%clk 0:02:53]} 12. Bb2 {[%clk 0:02:07.3]}
12... O-O {[%clk 0:02:52.6]} 13. Nd2 {[%clk 0:02:06.9]} 13... Rd8 {[%clk
0:02:51.2]} 14. N2f3 {[%clk 0:02:03.4]} 14... Bg4 {[%clk 0:02:41.9]} 15. h3
{[%clk 0:02:00.8]} 15... Bh5 {[%clk 0:02:31.7]} 16. g4 {[%clk 0:01:58.4]} 16...
Bg6 {[%clk 0:02:31.9]} 17. Rad1 {[%clk 0:01:58.4]} 17... Re8 {[%clk 0:02:31]}
18. a3 {[%clk 0:01:52.2]} 18... a5 {[%clk 0:02:30.5]} 19. Nf5 {[%clk 0:01:48]}
19... Rad8 {[%clk 0:02:22]} 20. Rc1 {[%clk 0:01:41.3]} 20... Bxf5 {[%clk
0:02:08.8]} 21. gxf5 {[%clk 0:01:41.3]} 21... Rd3 {[%clk 0:02:07.1]} 22. Kg2
{[%clk 0:01:40.2]} 22... Rxb3 {[%clk 0:02:06.9]} 23. Bd4 {[%clk 0:01:33.9]}
23... Bxd4 {[%clk 0:02:04.1]} 24. Nxd4 {[%clk 0:01:34.4]} 24... Rxa3 {[%clk
0:02:04]} 25. e6 {[%clk 0:01:33.8]} 25... Ra4 {[%clk 0:01:09.6]} 26. exf7+
{[%clk 0:01:18.7]} 26... Kxf7 {[%clk 0:01:09.9]} 27. Ne6 {[%clk 0:01:19.3]}
27... Rxc4 {[%clk 0:01:07.5]} 28. Rce1 {[%clk 0:01:16]} 28... h6 {[%clk
0:01:00.7]} 29. Nxc7 {[%clk 0:01:08.9]} 29... Rxe1 {[%clk 0:01:01.6]} 30. Rxe1
{[%clk 0:01:09.7]} 30... Nd5 {[%clk 0:00:59]} 31. Ne6 {[%clk 0:01:01.8]} 31...
Nf4+ {[%clk 0:00:56.6]} 32. Kg3 {[%clk 0:00:59]} 32... Nxe6 {[%clk 0:00:56.1]}
33. fxe6+ {[%clk 0:00:59.9]} 33... Ke7 {[%clk 0:00:56]} 34. f4 {[%clk
0:01:00.1]} 34... a4 {[%clk 0:00:55.7]} 35. f5 {[%clk 0:01:00.6]} 35... b5
{[%clk 0:00:54.5]} 36. Rd1 {[%clk 0:01:00.8]} 36... Re4 {[%clk 0:00:51.5]} 37.
Rd7+ {[%clk 0:01:00.4]} 37... Kf6 {[%clk 0:00:43.3]} 38. Rf7+ {[%clk 0:00:59.3]}
38... Ke5 {[%clk 0:00:44]} 39. e7 {[%clk 0:00:57]} 39... Kd6 {[%clk 0:00:44.3]}
40. Rxg7 {[%clk 0:00:53.4]} 40... Rxe7 {[%clk 0:00:44.5]} 41. Rg6+ {[%clk
0:00:53]} 41... Kc5 {[%clk 0:00:42.5]} 42. Rxh6 {[%clk 0:00:52.2]} 42... a3
{[%clk 0:00:42.3]} 43. f6 {[%clk 0:00:41.7]} 43... Rf7 {[%clk 0:00:42.6]} 44.
Rh5+ {[%clk 0:00:20.4]} 44... Kb6 {[%clk 0:00:42.9]} 45. Rf5 {[%clk 0:00:18.8]}
45... a2 {[%clk 0:00:40.5]} 46. Rf1 {[%clk 0:00:19.2]} 46... Rxf6 {[%clk
0:00:41]} 47. Ra1 {[%clk 0:00:16.4]} 47... Rg6+ {[%clk 0:00:37.1]} 48. Kf3
{[%clk 0:00:14.8]} 48... Rh6 {[%clk 0:00:36.2]} 49. Kg4 {[%clk 0:00:14.3]} 49...
Rg6+ {[%clk 0:00:32.9]} 50. Kf3 {[%clk 0:00:14.4]} 50... c5 {[%clk 0:00:32]} 51.
Rxa2 {[%clk 0:00:14.2]} 51... b4 {[%clk 0:00:32.7]} 52. h4 {[%clk 0:00:13.4]}
52... b3 {[%clk 0:00:32.1]} 53. Rb2 {[%clk 0:00:12.6]} 53... c4 {[%clk
0:00:32.5]} 54. h5 {[%clk 0:00:13]} 54... Rh6 {[%clk 0:00:31.8]} 55. Kg4 {[%clk
0:00:12.6]} 55... Kc5 {[%clk 0:00:32.4]} 56. Kg5 {[%clk 0:00:13]} 56... Rh8
{[%clk 0:00:33.1]} 57. h6 {[%clk 0:00:13.4]} 57... Kb4 {[%clk 0:00:33.6]} 58.
Kg6 {[%clk 0:00:13.5]} 58... c3 {[%clk 0:00:33.9]} 59. Rh2 {[%clk 0:00:13.3]}
59... b2 {[%clk 0:00:31.8]} 60. Rh4+ {[%clk 0:00:13.3]} 60... Kb3 {[%clk
0:00:31.7]} 61. Rh1 {[%clk 0:00:08.6]} 61... c2 {[%clk 0:00:30.2]} 62. Kg7
{[%clk 0:00:09]} 62... Rxh6 {[%clk 0:00:30]} 63. Rxh6 {[%clk 0:00:08.2]} 63...
c1=Q {[%clk 0:00:28.9]} 64. Rb6+ {[%clk 0:00:07.6]} 64... Ka2 {[%clk 0:00:29.2]}
65. Ra6+ {[%clk 0:00:07.9]} 65... Kb1 {[%clk 0:00:29.8]} 66. Rg6 {[%clk
0:00:06.8]} 66... Qc7+ {[%clk 0:00:28.5]} 67. Kh8 {[%clk 0:00:06.6]} 67... Qe5+
{[%clk 0:00:27.5]} 68. Rg7 {[%clk 0:00:06.7]} 68... Qxg7+ {[%clk 0:00:26.7]} 69.
Kxg7 {[%clk 0:00:07.5]} 69... Kc1 {[%clk 0:00:27.6]} 70. Kh8 {[%clk 0:00:08.3]}
70... b1=Q {[%clk 0:00:28.5]} 0-1

[Event "Early-Titled-Tuesday-Blitz-February-27-2024"]
[Site "Chess.com"]
[Date "2024.02.27"]
[Round "6"]
[White "ATM622"]
[Black "xamax2000"]
[Result "0-1"]
[WhiteElo "2540"]
[BlackElo "2833"]
[TimeControl "180+1"]
[EndTime "9:05:48 PST"]
[Termination "xamax2000 won by resignation"]

1. d4 {[%clk 0:03:00.9]} 1... d5 {[%clk 0:02:59.7]} 2. c4 {[%clk 0:03:00.8]}
2... e6 {[%clk 0:03:00.3]} 3. Nf3 {[%clk 0:03:00.5]} 3... Nf6 {[%clk 0:03:00.2]}
4. Nbd2 {[%clk 0:02:59.1]} 4... b6 {[%clk 0:02:53.1]} 5. g3 {[%clk 0:02:58.2]}
5... Bb7 {[%clk 0:02:51]} 6. Bg2 {[%clk 0:02:58.1]} 6... Nbd7 {[%clk 0:02:50.8]}
7. O-O {[%clk 0:02:58.1]} 7... Be7 {[%clk 0:02:49.8]} 8. b3 {[%clk 0:02:58.2]}
8... O-O {[%clk 0:02:49.2]} 9. Bb2 {[%clk 0:02:58.4]} 9... a5 {[%clk 0:02:49.8]}
10. Qc2 {[%clk 0:02:57.7]} 10... a4 {[%clk 0:02:49.7]} 11. Ne5 {[%clk
0:02:56.4]} 11... a3 {[%clk 0:02:47.9]} 12. Bc3 {[%clk 0:02:55.3]} 12... c5
{[%clk 0:02:46.6]} 13. e4 {[%clk 0:02:49.7]} 13... dxc4 {[%clk 0:02:33.1]} 14.
bxc4 {[%clk 0:02:35.5]} 14... cxd4 {[%clk 0:02:28.6]} 15. Bxd4 {[%clk
0:02:35.5]} 15... Qc7 {[%clk 0:02:25.1]} 16. Nxd7 {[%clk 0:02:26.8]} 16... Nxd7
{[%clk 0:02:26]} 17. Rab1 {[%clk 0:02:17.1]} 17... Rfd8 {[%clk 0:02:25.7]} 18.
Rfd1 {[%clk 0:02:06.1]} 18... Nc5 {[%clk 0:02:23.5]} 19. Nb3 {[%clk 0:01:59.7]}
19... Rd7 {[%clk 0:02:18.4]} 20. Nxc5 {[%clk 0:01:51.9]} 20... Bxc5 {[%clk
0:02:07.6]} 21. Bxc5 {[%clk 0:01:51.7]} 21... Rxd1+ {[%clk 0:02:07.6]} 22. Qxd1
{[%clk 0:01:41.5]} 22... Qxc5 {[%clk 0:01:50.9]} 23. Qd7 {[%clk 0:01:37.2]}
23... Ba6 {[%clk 0:01:40.4]} 24. e5 {[%clk 0:01:23.8]} 24... Rf8 {[%clk
0:01:40.2]} 25. Qd6 {[%clk 0:01:15.9]} 25... Bxc4 {[%clk 0:01:30.5]} 26. Rxb6
{[%clk 0:01:02.7]} 26... Qa5 {[%clk 0:00:57]} 27. Qb4 {[%clk 0:01:01.7]} 27...
Qxb4 {[%clk 0:00:41.5]} 28. Rxb4 {[%clk 0:01:02.6]} 28... Rc8 {[%clk 0:00:33.2]}
29. Bb7 {[%clk 0:00:35.2]} 29... Rc7 {[%clk 0:00:33.6]} 30. Ra4 {[%clk
0:00:21.5]} 30... g5 {[%clk 0:00:21.9]} 31. Be4 {[%clk 0:00:17.5]} 31... Bxa2
{[%clk 0:00:09.5]} 32. Rxa3 {[%clk 0:00:17.6]} 32... Rc1+ {[%clk 0:00:10.1]} 33.
Kg2 {[%clk 0:00:17.9]} 33... Bc4 {[%clk 0:00:10.8]} 34. Bd3 {[%clk 0:00:15.5]}
34... Bd5+ {[%clk 0:00:10.6]} 35. f3 {[%clk 0:00:12.6]} 35... Rd1 {[%clk
0:00:08]} 36. Be2 {[%clk 0:00:09.5]} 36... Rd2 {[%clk 0:00:07.3]} 37. Kf1 {[%clk
0:00:09.7]} 37... Kg7 {[%clk 0:00:06]} 38. Re3 {[%clk 0:00:08.4]} 38... Rb2
{[%clk 0:00:06.5]} 39. f4 {[%clk 0:00:08.3]} 39... h6 {[%clk 0:00:04]} 40. Kf2
{[%clk 0:00:08]} 40... Rb4 {[%clk 0:00:03.6]} 41. fxg5 {[%clk 0:00:05.8]} 41...
hxg5 {[%clk 0:00:03.7]} 42. Bf3 {[%clk 0:00:03.7]} 42... Rb2+ {[%clk 0:00:03.6]}
43. Be2 {[%clk 0:00:03.9]} 43... Bc4 {[%clk 0:00:03.4]} 44. Kf3 {[%clk
0:00:03.7]} 44... Bxe2+ {[%clk 0:00:02]} 45. Rxe2 {[%clk 0:00:04.6]} 45... Rxe2
{[%clk 0:00:02.2]} 46. Kxe2 {[%clk 0:00:05.5]} 46... Kg6 {[%clk 0:00:02.8]} 47.
g4 {[%clk 0:00:06]} 47... f5 {[%clk 0:00:02.5]} 48. Kf3 {[%clk 0:00:06]} 48...
f4 {[%clk 0:00:02.7]} 49. Ke4 {[%clk 0:00:06.1]} 49... Kf7 {[%clk 0:00:02.7]}
50. h4 {[%clk 0:00:03.2]} 50... gxh4 {[%clk 0:00:02.8]} 51. Kxf4 {[%clk
0:00:03.6]} 51... Kg6 {[%clk 0:00:03.5]} 52. g5 {[%clk 0:00:02]} 52... Kh5
{[%clk 0:00:02.1]} 53. g6 {[%clk 0:00:02.3]} 53... Kxg6 {[%clk 0:00:02.7]} 54.
Kg4 {[%clk 0:00:02.8]} 54... h3 {[%clk 0:00:03.5]} 55. Kxh3 {[%clk 0:00:03.2]}
55... Kf5 {[%clk 0:00:04.2]} 56. Kg3 {[%clk 0:00:03.9]} 56... Kxe5 {[%clk
0:00:04.9]} 57. Kf2 {[%clk 0:00:04.4]} 57... Kd4 {[%clk 0:00:05.6]} 58. Ke2
{[%clk 0:00:04.5]} 58... Ke4 {[%clk 0:00:06.3]} 59. Kf2 {[%clk 0:00:04.7]} 59...
Kd3 {[%clk 0:00:06.8]} 60. Kf1 {[%clk 0:00:04.4]} 60... e5 {[%clk 0:00:07.6]}
61. Ke1 {[%clk 0:00:04.4]} 61... e4 {[%clk 0:00:07.9]} 62. Kd1 {[%clk
0:00:04.8]} 62... e3 {[%clk 0:00:07.8]} 63. Ke1 {[%clk 0:00:05.4]} 63... e2
{[%clk 0:00:08.6]} 0-1

[Event "Early-Titled-Tuesday-Blitz-February-27-2024"]
[Site "Chess.com"]
[Date "2024.02.27"]
[Round "6"]
[White "Russian_berezka"]
[Black "baki83"]
[Result "1-0"]
[WhiteElo "2584"]
[BlackElo "2819"]
[TimeControl "180+1"]
[EndTime "9:05:51 PST"]
[Termination "Russian_berezka won by resignation"]

1. d4 {[%clk 0:03:00.9]} 1... d5 {[%clk 0:03:00]} 2. c4 {[%clk 0:03:01.4]} 2...
e6 {[%clk 0:03:00.4]} 3. Nc3 {[%clk 0:03:02]} 3... a6 {[%clk 0:03:00.7]} 4. cxd5
{[%clk 0:03:01.9]} 4... exd5 {[%clk 0:03:01]} 5. Nf3 {[%clk 0:03:02.5]} 5... Nf6
{[%clk 0:03:01.3]} 6. Bg5 {[%clk 0:03:02.7]} 6... Be7 {[%clk 0:03:00.9]} 7. e3
{[%clk 0:02:58.9]} 7... Be6 {[%clk 0:02:57.1]} 8. Bd3 {[%clk 0:02:56.4]} 8...
Nbd7 {[%clk 0:02:56.3]} 9. h3 {[%clk 0:02:55.3]} 9... h6 {[%clk 0:02:55.6]} 10.
Bf4 {[%clk 0:02:55.2]} 10... O-O {[%clk 0:02:52.5]} 11. O-O {[%clk 0:02:54.6]}
11... c5 {[%clk 0:02:52.3]} 12. dxc5 {[%clk 0:02:51.5]} 12... Nxc5 {[%clk
0:02:52.6]} 13. Bc2 {[%clk 0:02:49.6]} 13... b5 {[%clk 0:02:51.5]} 14. Nd4
{[%clk 0:02:46.4]} 14... Rc8 {[%clk 0:02:51.6]} 15. Rc1 {[%clk 0:02:39.2]} 15...
Qb6 {[%clk 0:02:46.4]} 16. Bb1 {[%clk 0:02:35]} 16... Rfd8 {[%clk 0:02:46]} 17.
Qf3 {[%clk 0:02:31]} 17... b4 {[%clk 0:02:30.6]} 18. Nce2 {[%clk 0:02:30.5]}
18... Nce4 {[%clk 0:02:28]} 19. Rfd1 {[%clk 0:02:22.2]} 19... Rxc1 {[%clk
0:02:07.8]} 20. Nxc1 {[%clk 0:02:13.2]} 20... a5 {[%clk 0:02:02.5]} 21. Nxe6
{[%clk 0:02:06.8]} 21... fxe6 {[%clk 0:01:57.8]} 22. Qe2 {[%clk 0:02:04]} 22...
a4 {[%clk 0:01:53.8]} 23. f3 {[%clk 0:01:54.8]} 23... Nd6 {[%clk 0:01:37]} 24.
Qc2 {[%clk 0:01:49.5]} 24... Nc4 {[%clk 0:01:05.1]} 25. Re1 {[%clk 0:01:46.3]}
25... e5 {[%clk 0:01:01.1]} 26. Bxh6 {[%clk 0:01:35.8]} 26... gxh6 {[%clk
0:00:51]} 27. Qg6+ {[%clk 0:01:36.2]} 27... Kf8 {[%clk 0:00:51.3]} 28. Qxh6+
{[%clk 0:01:37.1]} 28... Ke8 {[%clk 0:00:51.8]} 29. Bf5 {[%clk 0:01:13.6]} 29...
Bf8 {[%clk 0:00:36.8]} 30. Qg6+ {[%clk 0:00:54.9]} 30... Ke7 {[%clk 0:00:35.8]}
31. Nd3 {[%clk 0:00:55.6]} 31... b3 {[%clk 0:00:30.7]} 32. axb3 {[%clk
0:00:53.6]} 32... axb3 {[%clk 0:00:31.6]} 33. Kh1 {[%clk 0:00:47.7]} 33... Ra8
{[%clk 0:00:31.7]} 34. e4 {[%clk 0:00:40.1]} 34... d4 {[%clk 0:00:28.6]} 35. f4
{[%clk 0:00:39.9]} 35... Ne8 {[%clk 0:00:21.8]} 36. Qg8 {[%clk 0:00:29.4]} 36...
Ne3 {[%clk 0:00:10.8]} 37. Nxe5 {[%clk 0:00:27.3]} 37... Qf6 {[%clk 0:00:09.6]}
38. Ng6+ {[%clk 0:00:15]} 38... Kd8 {[%clk 0:00:09.9]} 39. Nxf8 {[%clk
0:00:13.4]} 39... Kc7 {[%clk 0:00:10]} 40. Ne6+ {[%clk 0:00:11.9]} 40... Kb6
{[%clk 0:00:10.1]} 41. Nxd4 {[%clk 0:00:07.6]} 41... Qxd4 {[%clk 0:00:09.7]} 42.
Qxb3+ {[%clk 0:00:07.7]} 42... Kc7 {[%clk 0:00:07.8]} 43. Qxe3 {[%clk
0:00:07.7]} 43... Qxb2 {[%clk 0:00:07.7]} 44. Qc1+ {[%clk 0:00:06.7]} 44... Qxc1
{[%clk 0:00:07.7]} 45. Rxc1+ {[%clk 0:00:07.6]} 45... Kd6 {[%clk 0:00:08.3]} 46.
Rd1+ {[%clk 0:00:07.1]} 46... Ke7 {[%clk 0:00:08.6]} 47. e5 {[%clk 0:00:07.5]}
47... Ng7 {[%clk 0:00:09]} 48. Bg4 {[%clk 0:00:07.5]} 48... Ra4 {[%clk
0:00:09.6]} 49. Rf1 {[%clk 0:00:07.5]} 49... Ne8 {[%clk 0:00:09.4]} 50. h4
{[%clk 0:00:07.3]} 50... Re4 {[%clk 0:00:09.5]} 51. h5 {[%clk 0:00:07.3]} 51...
Kf7 {[%clk 0:00:09.8]} 52. Bf5 {[%clk 0:00:06.5]} 52... Rb4 {[%clk 0:00:08]} 53.
Bg6+ {[%clk 0:00:06.8]} 53... Ke7 {[%clk 0:00:08]} 54. Bxe8 {[%clk 0:00:07.7]}
54... Kxe8 {[%clk 0:00:08.9]} 55. Kh2 {[%clk 0:00:07.4]} 55... Kf7 {[%clk
0:00:08.9]} 56. Kh3 {[%clk 0:00:07.7]} 56... Kg7 {[%clk 0:00:09.4]} 57. Kg4
{[%clk 0:00:08.3]} 57... Kh6 {[%clk 0:00:09.9]} 58. g3 {[%clk 0:00:08.9]} 58...
Rb6 {[%clk 0:00:10.2]} 59. Rd1 {[%clk 0:00:08.7]} 59... Rb7 {[%clk 0:00:09.4]}
60. Rd6+ {[%clk 0:00:09.3]} 60... Kh7 {[%clk 0:00:09.9]} 61. Kg5 {[%clk
0:00:08.8]} 61... Rg7+ {[%clk 0:00:10.2]} 62. Rg6 {[%clk 0:00:09.5]} 62... Rf7
{[%clk 0:00:10.1]} 63. e6 {[%clk 0:00:09.8]} 63... Re7 {[%clk 0:00:10.5]} 64.
Kf6 {[%clk 0:00:09.4]} 64... Re8 {[%clk 0:00:10.9]} 65. Kf7 {[%clk 0:00:09.2]}
65... Ra8 {[%clk 0:00:09.5]} 66. e7 {[%clk 0:00:09.3]} 1-0

[Event "Early-Titled-Tuesday-Blitz-February-27-2024"]
[Site "Chess.com"]
[Date "2024.02.27"]
[Round "6"]
[White "DumbKing75"]
[Black "ural58"]
[Result "0-1"]
[WhiteElo "2632"]
[BlackElo "2483"]
[TimeControl "180+1"]
[EndTime "9:05:52 PST"]
[Termination "ural58 won by resignation"]

1. d4 {[%clk 0:03:00.5]} 1... d5 {[%clk 0:02:48.4]} 2. Bf4 {[%clk 0:02:58.3]}
2... Nf6 {[%clk 0:02:47.4]} 3. e3 {[%clk 0:02:57.7]} 3... c5 {[%clk 0:02:46]} 4.
dxc5 {[%clk 0:02:58.2]} 4... Qa5+ {[%clk 0:02:26.2]} 5. Nc3 {[%clk 0:02:54.3]}
5... Ne4 {[%clk 0:02:13.8]} 6. Qxd5 {[%clk 0:01:23.2]} 6... Nxc3 {[%clk
0:02:10.2]} 7. Qd2 {[%clk 0:01:23.7]} 7... Qxc5 {[%clk 0:02:02.8]} 8. Qxc3
{[%clk 0:01:16.4]} 8... Qxc3+ {[%clk 0:02:02.7]} 9. bxc3 {[%clk 0:01:17.3]} 9...
Nc6 {[%clk 0:02:00.1]} 10. Nf3 {[%clk 0:01:13.5]} 10... f6 {[%clk 0:01:59]} 11.
e4 {[%clk 0:01:08.2]} 11... e5 {[%clk 0:01:54]} 12. Be3 {[%clk 0:01:08.2]} 12...
Be6 {[%clk 0:01:53.2]} 13. Nd2 {[%clk 0:00:57]} 13... Rc8 {[%clk 0:01:49.1]} 14.
Bb5 {[%clk 0:00:35.2]} 14... Kf7 {[%clk 0:01:48.4]} 15. O-O {[%clk 0:00:31.7]}
15... a6 {[%clk 0:01:46.7]} 16. Ba4 {[%clk 0:00:31.6]} 16... Na5 {[%clk
0:01:43.5]} 17. Bb6 {[%clk 0:00:27.6]} 17... Nc4 {[%clk 0:01:42.5]} 18. Nxc4
{[%clk 0:00:27.4]} 18... Rxc4 {[%clk 0:01:37.2]} 19. Bb3 {[%clk 0:00:27.9]}
19... Rxc3 {[%clk 0:01:36.9]} 20. Rfd1 {[%clk 0:00:27.3]} 20... Bxb3 {[%clk
0:00:59.6]} 21. cxb3 {[%clk 0:00:27.9]} 21... Ke6 {[%clk 0:00:58]} 22. Rac1
{[%clk 0:00:28.1]} 22... Rxc1 {[%clk 0:00:57.5]} 23. Rxc1 {[%clk 0:00:29]} 23...
Bd6 {[%clk 0:00:57.2]} 24. Kf1 {[%clk 0:00:27]} 24... Re8 {[%clk 0:00:53.8]} 25.
Ke2 {[%clk 0:00:27.1]} 25... g6 {[%clk 0:00:53.7]} 26. f3 {[%clk 0:00:20.6]}
26... f5 {[%clk 0:00:53.9]} 27. Kd3 {[%clk 0:00:20.4]} 27... Re7 {[%clk
0:00:53.3]} 28. a4 {[%clk 0:00:18.1]} 28... Rd7 {[%clk 0:00:53.3]} 29. Ke2
{[%clk 0:00:18.4]} 29... Bb4 {[%clk 0:00:53.1]} 30. Be3 {[%clk 0:00:16.8]} 30...
f4 {[%clk 0:00:52.2]} 31. Bc5 {[%clk 0:00:11.5]} 31... Rd2+ {[%clk 0:00:45.9]}
32. Kf1 {[%clk 0:00:11.8]} 32... Bxc5 {[%clk 0:00:22.3]} 33. Rxc5 {[%clk
0:00:12.7]} 33... Rb2 {[%clk 0:00:22.6]} 34. Rc3 {[%clk 0:00:13.2]} 34... Kd6
{[%clk 0:00:20.2]} 35. Kg1 {[%clk 0:00:06]} 35... g5 {[%clk 0:00:19.9]} 36. g3
{[%clk 0:00:04.9]} 36... h5 {[%clk 0:00:19.7]} 37. gxf4 {[%clk 0:00:05]} 37...
gxf4 {[%clk 0:00:20]} 38. Rd3+ {[%clk 0:00:05.1]} 38... Ke6 {[%clk 0:00:19.8]}
39. h3 {[%clk 0:00:03.2]} 39... h4 {[%clk 0:00:20.1]} 40. Rc3 {[%clk 0:00:03.4]}
40... Kd6 {[%clk 0:00:20.1]} 41. Rd3+ {[%clk 0:00:03.8]} 41... Kc6 {[%clk
0:00:19.8]} 42. Rc3+ {[%clk 0:00:03.6]} 42... Kd6 {[%clk 0:00:19.5]} 43. Rd3+
{[%clk 0:00:04.1]} 43... Kc5 {[%clk 0:00:19.7]} 44. Rd5+ {[%clk 0:00:04.2]}
44... Kb4 {[%clk 0:00:19.5]} 45. Rxe5 {[%clk 0:00:04.7]} 45... Rxb3 {[%clk
0:00:20.1]} 46. a5 {[%clk 0:00:04.6]} 46... Rxf3 {[%clk 0:00:19.8]} 47. Kh2
{[%clk 0:00:04.7]} 47... Rf2+ {[%clk 0:00:19.7]} 48. Kh1 {[%clk 0:00:04.7]}
48... Re2 {[%clk 0:00:20.3]} 49. Re7 {[%clk 0:00:03.7]} 49... f3 {[%clk
0:00:19.9]} 50. Kg1 {[%clk 0:00:01.9]} 50... Kxa5 {[%clk 0:00:17.2]} 51. e5
{[%clk 0:00:02.3]} 51... b5 {[%clk 0:00:15.9]} 52. e6 {[%clk 0:00:02.6]} 52...
b4 {[%clk 0:00:16.1]} 53. Rf7 {[%clk 0:00:01.5]} 53... Rxe6 {[%clk 0:00:15.3]}
54. Rxf3 {[%clk 0:00:02.1]} 54... Rb6 {[%clk 0:00:15.6]} 55. Rf4 {[%clk
0:00:02.8]} 55... b3 {[%clk 0:00:15.6]} 56. Rf5+ {[%clk 0:00:03.4]} 56... Rb5
{[%clk 0:00:15.4]} 0-1